bitfinex-derivatives/quotes_ETHF0:USTF0_20240910
["timestamp","ask_amount","ask_price","bid_price","bid_amount"]
[1725928495076,0.34094,2345.9,2345.4,0.4022]
[1725928495278,0.34095,2345.8,2345.4,0.4022]
[1725928497062,0.34097,2345.6,2345.4,0.4022]
[1725928497266,2.99,2345.8,2345.3,0.3777]
[1725928497267,0.34097,2345.7,2345.3,0.3777]
[1725928497468,0.70878,2345.6,2345.3,0.3777]
[1725928498473,0.3678,2345.6,2345.3,0.3777]
[1725928500075,0.34101,2345.4,2345.1,0.3993]
[1725928500271,2.99,2345.4,2344.9,3.4788]
[1725928500471,0.34103,2345.3,2344.7,2.23290914]
[1725928500679,0.34103,2345.3,2344.7,1.1332]
[1725928500880,0.34104,2345.2,2344.7,1.1332]
[1725928501064,3.20580478,2345.4,2344.7,0.7638]
[1725928501271,0.70875,2345.1,2344.7,0.7638]
[1725928501478,0.3677,2345.1,2344.7,0.7638]
[1725928501874,0.70875,2345.1,2344.7,0.7638]
[1725928502074,0.3677,2345.1,2344.7,0.7638]
[1725928502679,0.70875,2345.1,2344.7,0.7638]
[1725928502882,3.44564111,2345.4,2344.7,0.7638]
[1725928503179,0.2181,2345.5,2344.7,4.85350914]
[1725928503678,0.341,2345.4,2344.7,5.19460914]
[1725928503868,0.21723177,2345.3,2344.7,5.19460914]
[1725928504270,0.55825177,2345.3,2344.7,5.19460914]
[1725928504578,0.2181,2345.5,2344.8,1.09970914]
[1725928504771,0.34099,2345.5,2344.9,0.3949]
[1725928504969,3.3577,2345.6,2344.9,3.72596]
[1725928505173,0.3677,2345.6,2345.0,0.34106]
[1725928505468,0.3677,2345.6,2344.9,3.3849]
[1725928505469,0.34099,2345.5,2344.9,3.72597]
[1725928505669,0.34099,2345.5,2345.0,0.34106]
[1725928505878,0.34098,2345.6,2345.0,0.34106]
[1725928506275,0.34099,2345.5,2345.0,0.34106]
[1725928507077,0.341,2345.4,2344.9,3.72597]
[1725928508974,0.341,2345.4,2345.0,0.34105]
[1725928509182,0.341,2345.4,2344.9,3.72597]
[1725928510082,0.34101,2345.4,2345.0,0.34106]
[1725928510581,0.34101,2345.4,2345.1,0.3832]
[1725928510787,0.34101,2345.4,2345.2,0.4009]
[1725928511281,0.34098,2345.6,2345.3,4.264]
[1725928511584,0.34098,2345.6,2345.4,0.3634]
[1725928511890,0.34097,2345.7,2345.4,0.3634]
[1725928512085,3.84233,2346.0,2345.5,0.3768]
[1725928512086,0.34097,2345.6,2345.5,0.3768]
[1725928512582,0.23320224,2346.0,2345.5,0.3768]
[1725928512785,0.34092,2346.0,2345.6,0.34097]
[1725928512978,0.34092,2346.0,2345.7,0.4009]
[1725928513275,0.34091,2346.1,2345.7,0.4009]
[1725928513484,0.34091,2346.1,2345.7,1.84156914]
[1725928513982,4.07573173,2346.4,2345.7,1.84156914]
[1725928513983,0.34089,2346.2,2345.8,1.44064914]
[1725928514191,0.3409,2346.1,2345.9,0.3977]
[1725928514386,4.07573173,2346.4,2345.9,1.87420914]
[1725928514387,0.34089,2346.2,2345.9,1.87420914]
[1725928514779,0.34088,2346.3,2345.9,2.21512914]
[1725928515180,0.34087,2346.4,2345.9,2.21512914]
[1725928515387,0.3679,2346.5,2346.0,1.09970914]
[1725928515583,0.3679,2346.5,2346.0,1.44062914]
[1725928515779,0.34085,2346.5,2346.0,1.44061914]
[1725928516101,0.34085,2346.5,2346.1,1.44060914]
[1725928516288,0.34085,2346.5,2346.2,0.4001]
[1725928516792,0.55845653,2346.6,2346.2,0.4001]
[1725928516981,0.34085,2346.5,2346.2,0.4001]
[1725928517181,3.54844653,2346.6,2346.2,0.4001]
[1725928517382,3.54844653,2346.6,2346.3,0.3825]
[1725928517884,3.20761653,2346.6,2346.3,0.3825]
[1725928518082,0.55845653,2346.6,2346.3,0.3825]
[1725928518481,0.3678,2346.7,2346.3,0.3825]
[1725928518685,2.99,2347.2,2346.3,0.3825]
[1725928518883,0.34078,2347.0,2346.4,3.72475]
[1725928519990,3.59698962,2347.2,2346.4,3.3839]
[1725928520192,0.34078,2347.0,2346.4,3.72475]
[1725928520696,3.59698962,2347.2,2346.5,0.34084]
[1725928520697,0.34077,2347.1,2346.5,0.34084]
[1725928520990,0.34073,2347.3,2346.8,2.99]
[1725928521184,0.3676,2347.5,2346.9,0.7647]
[1725928521491,0.34072,2347.4,2346.9,1.1279]
[1725928521689,0.3676,2347.5,2346.9,1.1279]
[1725928521890,0.34071,2347.4,2346.9,1.1279]
[1725928523382,3.20510463,2347.8,2347.0,2.99]
[1725928523596,0.34069,2347.6,2347.0,2.99]
[1725928523790,3.20510463,2347.8,2347.0,2.99]
[1725928524000,0.06818677,2347.7,2347.0,2.99]
[1725928524189,0.34069,2347.6,2347.0,2.99]
[1725928524580,0.34068,2347.7,2347.0,2.99]
[1725928524785,0.34068,2347.7,2347.1,0.34075]
[1725928524984,3.44236436,2347.8,2347.0,2.99]
[1725928525189,0.34069,2347.6,2347.0,2.99]
[1725928525794,0.34069,2347.6,2347.0,3.33077]
[1725928526591,0.34069,2347.6,2346.9,1.1279]
[1725928526592,0.0681862,2347.5,2346.9,1.1279]
[1725928527000,0.34072,2347.4,2346.9,1.1279]
[1725928527295,0.34071,2347.5,2346.9,1.46868]
[1725928527886,0.06820166,2347.4,2346.9,1.46868]
[1725928528091,0.06820166,2347.3,2347.1,0.34075]
[1725928528293,0.55404368,2347.7,2347.1,0.34075]
[1725928528490,0.06820494,2347.6,2347.1,0.34075]
[1725928529291,0.40888494,2347.6,2347.1,0.34075]
[1725928529596,0.06820655,2347.5,2347.1,0.34075]
[1725928529995,0.34072,2347.4,2347.0,2.99]
[1725928530188,0.06820632,2347.3,2347.0,2.99]
[1725928530797,0.34071,2347.5,2347.0,2.99]
[1725928531002,0.06820646,2347.4,2347.0,3.33077]
[1725928531494,0.06820646,2347.4,2347.0,2.99]
[1725928531699,0.40891646,2347.4,2346.9,1.46868]
[1725928531889,0.06820646,2347.3,2346.9,0.7647]
[1725928532191,0.06819879,2347.2,2346.9,0.7647]
[1725928532391,0.34072,2347.4,2346.9,0.7647]
[1725928532597,0.06819955,2347.3,2346.9,0.7647]
[1725928533797,0.06819955,2347.3,2346.9,1.10548]
[1725928534785,0.40892955,2347.3,2346.9,0.7647]
[1725928534988,0.34073,2347.3,2346.9,0.7647]
[1725928535397,3.2078,2347.6,2346.9,0.7647]
[1725928535790,0.34072,2347.4,2346.9,1.10548]
[1725928535993,3.2078,2347.6,2346.9,1.10548]
[1725928536185,0.34071,2347.4,2346.9,1.10548]
[1725928539489,0.34071,2347.4,2347.0,0.34077]
[1725928539690,0.34071,2347.5,2347.0,0.34077]
[1725928540099,0.34069,2347.6,2347.0,2.99]
[1725928540292,0.45832522,2347.7,2347.2,2.99]
[1725928540293,0.24161032,2347.7,2347.2,2.99]
[1725928540499,0.3407,2347.5,2347.3,0.7776]
[1725928540697,0.3407,2347.5,2347.4,0.3756]
[1725928542699,0.34069,2347.6,2347.4,0.3756]
[1725928543294,0.3407,2347.6,2347.4,0.3756]
[1725928543797,0.3407,2347.5,2347.4,0.3756]
[1725928544001,0.34069,2347.6,2347.4,0.3756]
[1725928544390,0.3407,2347.5,2347.4,0.3756]
[1725928544701,0.34071,2347.5,2347.3,0.3854]
[1725928545002,0.34071,2347.4,2347.3,0.3854]
[1725928546197,0.34074,2347.3,2347.1,0.7393]
[1725928548809,0.58345033,2347.4,2347.1,0.7393]
[1725928549499,0.34073,2347.3,2347.1,0.7393]
[1725928549704,0.2343726,2347.6,2347.1,0.7393]
[1725928549903,0.2343726,2347.6,2347.1,1.08005]
[1725928549904,0.34069,2347.6,2347.1,1.08005]
[1725928550411,0.06819644,2347.5,2347.1,1.08005]
[1725928550701,0.06819644,2347.5,2347.4,2.99]
[1725928550895,0.06819644,2347.6,2347.4,2.99]
[1725928551100,0.06819644,2347.5,2347.4,2.99]
[1725928551902,0.06819696,2347.5,2347.4,2.99]
[1725928552203,0.06819696,2347.5,2347.2,2.99]
[1725928552506,0.34071,2347.4,2347.1,0.7393]
[1725928552711,0.06819696,2347.3,2347.1,0.7393]
[1725928553207,0.34071,2347.5,2347.1,0.7393]
[1725928553410,0.40891424,2347.4,2347.1,0.7393]
[1725928553610,0.06819614,2347.3,2347.1,0.7393]
[1725928555908,0.40891424,2347.4,2347.1,0.7393]
[1725928556109,0.06819562,2347.3,2347.1,0.7393]
[1725928556604,0.40892562,2347.3,2347.1,0.7393]
[1725928556902,2.99,2347.6,2347.1,0.7393]
[1725928556903,0.06819562,2347.2,2347.1,0.7393]
[1725928557108,0.06819562,2347.3,2347.1,0.7393]
[1725928557301,0.06819562,2347.2,2347.1,0.7393]
[1725928557501,0.34073,2347.4,2347.1,0.7393]
[1725928557700,0.218,2347.8,2347.1,0.7393]
[1725928557907,0.34069,2347.6,2347.2,2.99]
[1725928558407,1.06016403,2347.9,2347.3,0.34072]
[1725928558408,0.34066,2347.8,2347.3,0.34072]
[1725928558610,0.34067,2347.7,2347.4,2.99]
[1725928558908,0.34066,2347.8,2347.4,2.99]
[1725928560208,0.34067,2347.7,2347.4,2.99]
[1725928560413,1.88734379,2348.1,2347.2,2.99]
[1725928560414,2.99,2348.0,2347.2,2.99]
[1725928560712,0.34071,2347.4,2347.1,0.7393]
[1725928561407,0.3407,2347.5,2347.1,0.7393]
[1725928561905,0.3407,2347.5,2347.2,2.99]
[1725928562597,0.8517,2347.7,2347.2,2.99]
[1725928562804,0.34068,2347.7,2347.4,2.99]
[1725928563308,0.34066,2347.8,2347.4,2.99]
[1725928563607,0.34067,2347.7,2347.4,2.99]
[1725928564198,0.34064,2348.0,2347.6,2.99]
[1725928564403,0.54922951,2348.1,2347.7,0.7489]
[1725928564603,0.5855,2348.5,2347.7,1.1338]
[1725928564801,0.21030556,2348.4,2347.8,2.99]
[1725928565010,0.21030556,2348.4,2348.0,2.99]
[1725928565011,0.3406,2348.3,2348.0,2.99]
[1725928565315,0.3406,2348.3,2348.1,0.3849]
[1725928565811,0.21030556,2348.4,2348.1,0.3849]
[1725928566003,0.34059,2348.3,2348.1,0.3849]
[1725928567198,0.3406,2348.2,2348.1,0.3849]
[1725928567412,0.21030556,2348.4,2347.8,2.99]
[1725928567616,0.3406,2348.2,2347.9,0.3912]
[1725928568415,0.34059,2348.3,2347.9,0.3912]
[1725928568706,0.34062,2348.1,2347.9,0.3912]
[1725928568911,3.84143,2348.4,2347.7,0.7489]
[1725928569113,0.34063,2348.0,2347.7,1.1401]
[1725928570119,0.34062,2348.1,2347.7,1.1401]
[1725928571211,0.3406,2348.2,2347.7,1.1401]
[1725928571516,0.8183225,2348.5,2348.0,2.99]
[1725928571815,0.06824574,2348.4,2348.1,0.3932]
[1725928572016,0.4508225,2348.5,2348.2,0.3651]
[1725928572314,0.5856,2348.8,2348.2,0.7615]
[1725928572519,0.34056,2348.5,2348.2,0.7615]
[1725928572916,0.34054,2348.6,2348.2,0.7615]
[1725928573114,0.06825562,2348.5,2348.2,0.7615]
[1725928573315,0.40880562,2348.5,2348.2,0.7615]
[1725928573518,0.34055,2348.6,2348.2,3.7515]
[1725928573717,0.06824666,2348.5,2348.2,3.7515]
[1725928573910,1.03313461,2348.8,2348.2,3.7515]
[1725928574111,0.34056,2348.5,2348.2,3.7515]
[1725928574312,0.34057,2348.4,2348.2,3.7515]
[1725928574618,0.34057,2348.4,2348.2,0.7615]
[1725928574819,4.02313461,2348.8,2348.2,0.7615]
[1725928575017,0.34055,2348.5,2348.2,0.7615]
[1725928575218,0.0682393,2348.4,2348.2,0.7615]
[1725928576527,0.4088093,2348.4,2348.2,0.7615]
[1725928576836,0.34057,2348.4,2348.2,0.7615]
[1725928577038,0.85132,2348.7,2348.2,0.7615]
[1725928577232,0.06825351,2348.6,2348.2,0.7615]
[1725928577433,0.06825351,2348.6,2348.2,0.3651]
[1725928577434,0.34058,2348.3,2348.2,0.3651]
[1725928577735,0.40883113,2348.3,2348.2,0.3651]
[1725928578234,0.40883005,2348.3,2348.2,0.3651]
[1725928582040,0.34063,2348.0,2347.9,0.3773]
[1725928582244,0.34065,2347.8,2347.7,3.4788]
[1725928582429,0.4088973,2347.8,2347.6,2.99]
[1725928582634,0.34065,2347.8,2347.6,2.99]
[1725928582830,0.34065,2347.8,2347.3,1.49712]
[1725928582831,0.06825444,2347.7,2347.4,2.99]
[1725928583036,0.06825444,2347.6,2347.4,2.99]
[1725928583243,0.06825444,2347.5,2347.4,2.99]
[1725928583537,0.34066,2347.8,2347.4,2.99]
[1725928583733,0.06825372,2347.7,2347.4,2.99]
[1725928584329,0.06825372,2347.7,2347.3,1.1564]
[1725928584330,0.34062,2348.1,2347.6,2.99]
[1725928584531,0.06825696,2348.0,2347.9,2.99]
[1725928585535,0.3406,2348.2,2347.9,2.99]
[1725928585750,0.06825696,2348.1,2347.9,2.99]
[1725928585937,0.3406,2348.2,2347.9,2.99]
[1725928586133,0.06826082,2348.1,2347.9,2.99]
[1725928586659,0.06826082,2348.0,2347.9,2.99]
[1725928586942,0.06826082,2348.1,2347.9,2.99]
[1725928587145,0.06826082,2348.0,2347.9,2.99]
[1725928587342,0.06826082,2348.1,2347.9,2.99]
[1725928587536,0.06826082,2348.0,2347.5,1.09970914]
[1725928587739,0.34079,2346.9,2346.7,3.4788]
[1725928588039,0.21506499,2347.0,2346.7,0.4003]
[1725928588239,2.99,2347.3,2346.3,2.99]
[1725928588547,2.99,2347.3,2346.4,0.3979]
[1725928588548,0.34082,2346.7,2346.4,0.3979]
[1725928588842,2.99,2347.1,2346.4,0.3979]
[1725928588843,0.34081,2346.8,2346.4,0.3979]
[1725928589242,2.99,2347.1,2346.4,0.3979]
[1725928589447,0.3408,2346.9,2346.4,0.3979]
[1725928590852,0.34079,2346.9,2346.4,0.3979]
[1725928591153,2.99,2347.1,2346.4,0.3979]
[1725928591449,0.34079,2346.9,2346.5,2.99]
[1725928592053,0.34078,2347.0,2346.5,2.99]
[1725928592248,0.34079,2346.9,2346.5,2.99]
[1725928592951,0.85186,2347.2,2346.5,2.99]
[1725928593156,0.34078,2347.0,2346.5,2.99]
[1725928593350,0.34079,2346.9,2346.6,0.3825]
[1725928593549,0.34078,2347.0,2346.6,0.3825]
[1725928593955,0.34076,2347.1,2346.6,0.3825]
[1725928594247,0.34077,2347.0,2346.6,0.3825]
[1725928595253,0.34076,2347.1,2346.7,2.99]
[1725928596955,0.2183663,2347.2,2346.7,2.99]
[1725928596956,0.34077,2347.0,2346.7,2.99]
[1725928597455,0.82391707,2347.4,2346.7,2.99]
[1725928597950,0.34079,2346.9,2346.7,2.99]
[1725928598151,0.34079,2346.9,2346.8,0.3665]
[1725928598959,0.34078,2347.0,2346.8,0.3665]
[1725928600656,0.34076,2347.1,2346.8,0.3665]
[1725928600859,0.34076,2347.1,2346.9,0.3744]
[1725928602458,0.34075,2347.2,2346.9,0.3744]
[1725928602654,0.34076,2347.1,2346.9,0.3744]
[1725928603061,0.34075,2347.2,2346.9,0.3744]
[1725928603551,0.34076,2347.1,2346.9,0.3744]
[1725928604059,0.21025905,2347.5,2346.9,0.3744]
[1725928604259,0.34073,2347.3,2346.9,0.3744]
[1725928605056,0.55186441,2347.4,2347.0,2.99]
[1725928605357,0.34073,2347.3,2347.1,0.3797]
[1725928605762,0.55274844,2347.4,2347.1,0.3797]
[1725928606158,0.34073,2347.3,2347.1,0.3797]
[1725928610061,0.34074,2347.2,2347.1,0.3797]
[1725928610255,0.34074,2347.2,2346.9,0.3744]
[1725928610657,0.34074,2347.3,2346.9,0.3744]
[1725928611058,0.0682408,2347.2,2346.9,0.3744]
[1725928611254,0.55739213,2347.4,2347.0,2.99]
[1725928611458,0.06823986,2347.3,2347.0,2.99]
[1725928611663,0.06823986,2347.3,2346.9,0.3744]
[1725928611664,0.5866,2347.9,2347.2,2.99]
[1725928611858,0.5866,2347.9,2347.3,1.1406]
[1725928611859,0.34068,2347.7,2347.3,1.1406]
[1725928612166,0.40893266,2347.6,2347.3,1.1406]
[1725928612466,0.06824266,2347.5,2347.3,1.1406]
[1725928613161,0.06824266,2347.5,2347.4,2.99]
[1725928613363,0.45627612,2348.4,2347.4,7.25]
[1725928613567,0.85132,2348.7,2348.1,2.99]
[1725928613861,0.34058,2348.4,2348.1,2.99]
[1725928614071,2.99,2348.7,2347.9,0.7498]
[1725928614258,0.34063,2348.0,2347.9,0.3662]
[1725928614455,0.61955737,2348.0,2347.9,0.3662]
[1725928614656,0.47716081,2348.0,2347.9,0.3662]
[1725928614856,0.40889531,2348.0,2347.9,0.3662]
[1725928615167,0.1365316,2348.0,2347.9,0.3662]
[1725928615362,0.06826531,2348.0,2347.9,0.3662]
[1725928617470,0.06826531,2348.0,2347.9,4.6254]
[1725928617764,0.23427386,2348.6,2347.9,7.6154]
[1725928617959,0.34057,2348.4,2348.0,0.3978]
[1725928618762,3.59120007,2348.7,2348.0,0.3978]
[1725928619063,3.90964945,2348.6,2347.9,0.3662]
[1725928619373,0.3406,2348.2,2347.9,0.3662]
[1725928619572,0.20988527,2348.1,2347.9,0.3662]
[1725928619772,0.34062,2348.1,2347.5,2.99]
[1725928620069,0.55399981,2348.1,2347.6,0.3843]
[1725928620275,0.34062,2348.1,2347.6,0.3843]
[1725928620664,0.55676987,2348.1,2347.6,0.3843]
[1725928621563,0.21614987,2348.1,2347.6,0.72498]
[1725928621864,0.34063,2348.0,2347.6,0.3843]
[1725928623361,0.55676987,2348.1,2347.6,0.3843]
[1725928624670,0.34063,2348.0,2347.6,0.3843]
[1725928624886,0.55675987,2348.1,2347.6,0.3843]
[1725928626372,0.34063,2348.0,2347.6,0.3843]
[1725928626878,0.55676987,2348.1,2347.6,0.3843]
[1725928628078,0.34063,2348.0,2347.6,0.3843]
[1725928628767,0.55676987,2348.1,2347.6,0.3843]
[1725928628960,0.34062,2348.1,2347.6,0.3843]
[1725928629159,0.21064003,2348.0,2347.6,0.3843]
[1725928629577,0.21064003,2348.0,2347.6,0.72498]
[1725928629766,0.21064003,2348.0,2347.6,0.3843]
[1725928630977,0.55127003,2348.0,2347.6,0.3843]
[1725928631186,0.34063,2348.0,2347.6,0.3843]
[1725928631475,0.2433071,2348.3,2347.8,2.99]
[1725928631673,3.84128,2348.8,2347.9,0.71703]
[1725928631674,0.3682,2348.5,2347.9,0.71703]
[1725928631871,4.42878,2348.8,2348.0,2.99]
[1725928631872,0.23394084,2348.6,2348.0,2.99]
[1725928632074,0.34059,2348.3,2348.1,0.3964]
[1725928632476,0.34059,2348.3,2347.9,0.7455]
[1725928632675,0.34059,2348.3,2347.9,1.1143]
[1725928632876,0.34058,2348.4,2347.9,1.45494]
[1725928633379,0.34057,2348.4,2347.9,1.45493]
[1725928634374,0.34058,2348.3,2347.9,1.45493]
[1725928634575,3.59155393,2348.8,2348.0,2.99]
[1725928634576,3.8413,2348.8,2348.0,2.99]
[1725928634771,0.34057,2348.4,2348.0,3.33062]
[1725928635083,0.06827155,2348.7,2348.0,3.33062]
[1725928635084,0.34056,2348.5,2348.0,3.33062]
[1725928635281,0.34056,2348.5,2348.1,0.34061]
[1725928636281,0.34056,2348.5,2348.0,3.33062]
[1725928636879,0.34058,2348.4,2348.0,2.99]
[1725928637587,0.34056,2348.5,2348.0,3.33062]
[1725928637887,0.34057,2348.4,2348.0,2.99]
[1725928638374,0.85135,2348.6,2348.0,2.99]
[1725928638571,0.06827108,2348.5,2347.9,1.1143]
[1725928638771,2.99,2348.6,2347.9,1.1143]
[1725928638985,0.34057,2348.4,2347.9,1.45494]
[1725928639184,0.34056,2348.5,2347.9,1.45494]
[1725928639380,0.34056,2348.5,2348.0,3.33062]
[1725928639582,0.5868,2348.7,2348.0,2.99]
[1725928639790,0.34056,2348.5,2348.0,3.33062]
[1725928640080,0.23824497,2348.8,2348.0,2.99]
[1725928640385,0.34053,2348.7,2348.2,3.33059]
[1725928640587,0.06827651,2348.6,2348.3,0.3822]
[1725928640787,0.06827651,2348.6,2348.4,0.7662]
[1725928640976,0.06827735,2348.5,2348.4,0.7662]
[1725928641286,0.06827735,2348.5,2348.4,4.09676]
[1725928641287,0.06828461,2348.5,2348.4,4.09676]
[1725928641481,0.06828326,2348.8,2348.5,0.34055]
[1725928641686,0.06828468,2348.7,2348.6,2.99]
[1725928641880,0.06828468,2348.8,2348.6,2.99]
[1725928642080,0.55234574,2349.0,2348.7,0.3822]
[1725928642275,0.06828375,2348.9,2348.7,0.3822]
[1725928642482,0.40878375,2348.9,2348.7,0.3822]
[1725928642683,0.40879375,2348.8,2348.7,0.3822]
[1725928642992,0.06828375,2348.8,2348.7,0.3822]
[1725928644391,0.06828442,2348.8,2348.7,0.3822]
[1725928645597,0.40879442,2348.8,2348.7,0.3822]
[1725928646085,0.06828442,2348.8,2348.7,0.3822]
[1725928648290,0.3405,2348.9,2348.7,0.3822]
[1725928648491,0.06828177,2348.8,2348.7,0.3822]
[1725928648790,0.34051,2348.8,2348.7,0.3822]
[1725928649982,0.34053,2348.7,2348.4,0.7662]
[1725928650291,1.28159574,2349.0,2348.4,1.1683]
[1725928650492,0.34053,2348.7,2348.4,1.1683]
[1725928653388,0.34052,2348.8,2348.4,1.1683]
[1725928654899,0.34052,2348.8,2348.4,1.50887]
[1725928655296,0.34052,2348.8,2348.4,1.1683]
[1725928656590,0.34052,2348.8,2348.5,2.99]
[1725928657300,0.34053,2348.7,2348.5,2.99]
[1725928657487,0.43035574,2349.0,2348.5,2.99]
[1725928657488,0.34051,2348.8,2348.5,2.99]
[1725928661199,0.34053,2348.7,2348.5,2.99]
[1725928661493,3.65472493,2349.0,2348.4,1.1683]
[1725928661692,0.34053,2348.7,2348.4,1.1683]
[1725928661900,0.34054,2348.6,2348.4,1.1683]
[1725928662201,0.55076618,2348.7,2348.4,1.1683]
[1725928662985,0.21023618,2348.7,2348.4,1.1683]
[1725928663592,0.55076618,2348.7,2348.4,1.1683]
[1725928664790,0.21023618,2348.7,2348.4,1.1683]
[1725928665390,1.31048224,2349.0,2348.6,0.34053]
[1725928665391,0.24075224,2349.0,2348.6,0.34053]
[1725928665593,0.34048,2349.0,2348.6,2.99]
[1725928666300,0.78879309,2349.1,2348.6,2.99]
[1725928667297,0.34048,2349.0,2348.6,2.99]
[1725928668699,0.3405,2348.9,2348.6,2.99]
[1725928669406,0.34049,2349.0,2348.6,2.99]
[1725928670705,0.06830621,2348.9,2348.6,2.99]
[1725928672399,0.34049,2349.0,2348.6,2.99]
[1725928672699,0.06830258,2348.9,2348.6,2.99]
[1725928674711,0.06831125,2348.8,2348.6,2.99]
[1725928674914,0.06831125,2348.9,2348.6,2.99]
[1725928675103,0.06831124,2348.7,2348.6,2.99]
[1725928675306,0.06831124,2348.8,2348.6,2.99]
[1725928675806,0.06831124,2348.8,2348.4,1.1683]
[1725928675995,0.06831124,2348.7,2348.4,1.1683]
[1725928676198,0.34054,2348.6,2348.4,1.1683]
[1725928676410,0.06830647,2348.5,2348.4,1.1683]
[1725928676999,0.06830634,2348.5,2348.4,1.1683]
[1725928677601,0.34053,2348.7,2348.4,1.1683]
[1725928677802,0.06830634,2348.6,2348.4,1.1683]
[1725928678897,0.34053,2348.7,2348.4,1.1683]
[1725928679108,0.3405,2348.9,2348.5,2.99]
[1725928679309,0.34049,2349.0,2348.5,2.99]
[1725928679921,0.55420671,2349.0,2348.5,2.99]
[1725928680298,0.3405,2348.9,2348.5,2.99]
[1725928680499,0.34049,2349.0,2348.5,2.99]
[1725928680712,0.3405,2348.9,2348.5,2.99]
[1725928681305,0.34049,2348.9,2348.5,2.99]
[1725928681504,0.34051,2348.8,2348.5,2.99]
[1725928681709,0.3405,2348.9,2348.5,2.99]
[1725928683005,4.29700361,2349.3,2348.5,2.99]
[1725928683205,0.34048,2349.0,2348.5,3.33055]
[1725928683412,0.06830655,2348.9,2348.5,3.33055]
[1725928683613,0.34048,2349.0,2348.5,3.33055]
[1725928684212,0.3405,2348.9,2348.5,2.99]
[1725928684713,0.3405,2348.9,2348.7,2.99]
[1725928684924,0.34048,2349.0,2348.7,2.99]
[1725928685212,0.34046,2349.2,2348.7,2.99]
[1725928685415,0.45587361,2349.3,2348.9,2.99]
[1725928685712,0.45587361,2349.3,2349.0,0.7376]
[1725928685713,0.06831816,2349.2,2349.0,0.7376]
[1725928685903,0.55589848,2349.3,2349.0,0.7376]
[1725928686503,0.34042,2349.4,2349.1,2.99]
[1725928686709,0.34042,2349.4,2349.2,0.3744]
[1725928687402,0.34042,2349.5,2349.2,0.3744]
[1725928687807,0.85098,2349.7,2349.2,0.3744]
[1725928687808,0.34043,2349.4,2349.2,0.3744]
[1725928688113,0.34042,2349.5,2349.2,0.3744]
[1725928688317,0.3404,2349.6,2349.2,0.3744]
[1725928688617,1.04341442,2349.8,2349.2,0.3744]
[1725928688909,0.34043,2349.4,2349.2,0.3744]
[1725928689121,0.34041,2349.5,2349.2,0.3744]
[1725928689908,0.3404,2349.6,2349.2,0.3744]
[1725928690102,1.04341442,2349.8,2349.3,2.99]
[1725928690103,0.45621442,2349.8,2349.3,2.99]
[1725928690317,0.34037,2349.8,2349.3,3.33043]
[1725928690510,0.21456869,2349.8,2349.3,0.34043]
[1725928690713,0.34037,2349.8,2349.5,2.99]
[1725928690917,0.5487193,2349.8,2349.6,0.753]
[1725928691218,0.2083493,2349.8,2349.6,1.1546]
[1725928691409,0.5487193,2349.8,2349.6,1.1546]
[1725928691609,0.34034,2350.0,2349.6,1.1546]
[1725928692119,0.34034,2350.0,2349.7,2.99]
[1725928692416,0.85072,2350.4,2349.7,2.99]
[1725928692417,0.34032,2350.2,2349.7,2.99]
[1725928692622,0.34032,2350.2,2349.9,2.99]
[1725928692921,0.34032,2350.1,2350.0,0.3804]
[1725928693109,0.34032,2350.2,2350.0,0.3804]
[1725928693309,0.34031,2350.3,2350.1,0.3759]
[1725928693505,0.34031,2350.2,2350.1,0.3759]
[1725928694220,0.40865126,2350.2,2350.1,0.3759]
[1725928694810,0.06834742,2350.2,2350.1,0.3759]
[1725928695215,0.58009845,2350.3,2350.1,0.3759]
[1725928695413,0.34027,2350.5,2350.1,3.7403]
[1725928695612,0.06835389,2350.4,2350.1,3.7403]
[1725928695907,0.3682,2350.7,2350.1,3.7403]
[1725928695908,3.3582,2350.7,2350.1,0.7503]
[1725928696112,3.3582,2350.7,2350.1,0.3759]
[1725928696113,0.34031,2350.2,2350.1,0.3759]
[1725928696325,0.06835269,2350.2,2350.1,0.3759]
[1725928696514,0.60389426,2350.7,2350.1,0.3759]
[1725928696714,0.34028,2350.5,2350.1,3.3659]
[1725928697028,0.06835277,2350.4,2350.1,3.3659]
[1725928697208,0.40863277,2350.4,2350.1,3.3659]
[1725928697413,0.34028,2350.4,2350.1,3.3659]
[1725928698421,0.60389426,2350.7,2350.1,3.3659]
[1725928698614,0.34028,2350.4,2350.1,3.3659]
[1725928699322,0.34029,2350.3,2350.1,3.3659]
[1725928700220,0.34029,2350.3,2350.1,0.3759]
[1725928700420,1.45451426,2350.7,2350.1,0.3759]
[1725928700421,0.34029,2350.4,2350.1,0.3759]
[1725928700621,0.34029,2350.3,2350.1,0.3759]
[1725928703324,0.34031,2350.2,2350.1,3.3659]
[1725928703719,0.34031,2350.2,2350.1,0.3759]
[1725928704128,0.3403,2350.3,2350.1,0.3759]
[1725928704332,0.34021,2350.9,2350.1,3.3659]
[1725928704529,0.34027,2350.5,2350.1,3.3659]
[1725928704827,0.06836383,2350.8,2350.1,0.3759]
[1725928704828,3.84056,2350.8,2350.1,0.3759]
[1725928705022,0.34028,2350.4,2350.1,0.3759]
[1725928705223,0.06836072,2350.3,2350.1,0.3759]
[1725928705425,0.5868,2350.7,2350.1,0.3759]
[1725928705630,0.34027,2350.5,2350.1,0.3759]
[1725928705832,0.06835383,2350.4,2350.1,0.3759]
[1725928706530,0.06835808,2350.3,2350.1,0.3759]
[1725928706728,0.13671516,2350.3,2350.1,0.3759]
[1725928706934,0.06835808,2350.3,2350.1,0.3759]
[1725928708634,0.06833342,2350.2,2350.1,0.3759]